bitfinex/quotes_SOLUSD_20250123
["timestamp","ask_amount","ask_price","bid_price","bid_amount"]
[1737621769310,0.74067684,247.19,247.14,11.78262419]
[1737621770130,0.74067684,247.19,247.14,15.82882419]
[1737621770322,0.74067684,247.16,247.13,4.0464]
[1737621771821,0.74067684,247.18,247.13,4.0464]
[1737621772614,0.74067684,247.18,247.14,11.78262419]
[1737621772918,0.74067684,247.2,247.14,11.78262419]
[1737621773122,0.74067684,247.15,247.13,0.03]
[1737621774127,0.47384819,247.15,247.13,0.03]
[1737621774526,0.47384819,247.19,247.14,11.78262419]
[1737621775349,0.47384819,247.19,247.13,0.03]
[1737621775806,0.47384819,247.14,247.13,0.03]
[1737621778033,0.47384819,247.16,247.13,0.03]
[1737621779027,7.8587,247.17,247.13,0.03]
[1737621779335,0.47384819,247.18,247.13,0.03]
[1737621781019,0.47384819,247.18,247.14,11.78262419]
[1737621781221,0.47384819,247.16,247.13,0.03]
[1737621782547,0.47384819,247.14,247.13,0.03]
[1737621783335,0.47384819,247.16,247.13,0.03]
[1737621783620,0.47384819,247.14,247.13,0.03]
[1737621783817,0.47384819,247.16,247.13,0.03]
[1737621784045,0.47384819,247.14,247.13,0.03]
[1737621785446,0.47384819,247.15,247.13,0.03]
[1737621785614,0.47384819,247.17,247.13,0.03]
[1737621787837,0.47384819,247.19,247.14,4.0462]
[1737621788428,0.47384819,247.17,247.14,4.0462]
[1737621788816,0.47384819,247.19,247.14,4.0462]
[1737621789556,11.84562419,247.23,247.17,20.0]
[1737621789734,6.5436,247.34,247.24,20.0]
[1737621789939,6.5436,247.34,247.28,11.78262419]
[1737621790137,19.54976906,247.39,247.3,11.78262419]
[1737621790453,6.15204487,247.38,247.29,11.78262419]
[1737621790646,6.15204487,247.38,247.25,5.6298577]
[1737621790828,11.78262419,247.36,247.27,11.78262419]
[1737621791033,11.78262419,247.34,247.25,17.41248189]
[1737621791953,11.78262419,247.34,247.25,15.82702419]
[1737621792255,23.776884,247.33,247.25,11.78262419]
[1737621792454,11.78262419,247.34,247.25,11.78262419]
[1737621792657,11.78262419,247.36,247.27,11.78262419]
[1737621793825,11.78262419,247.36,247.27,15.82662419]
[1737621794330,11.78262419,247.38,247.29,11.78262419]
[1737621795939,11.78262419,247.34,247.25,15.82692419]
[1737621796328,11.78262419,247.36,247.27,11.78262419]
[1737621797855,11.78262419,247.38,247.29,11.78262419]
[1737621798556,11.78262419,247.36,247.27,15.82662419]
[1737621801449,11.78262419,247.32,247.23,13.40744346]
[1737621801651,11.78262419,247.3,247.21,11.78262419]
[1737621803357,11.78262419,247.3,247.22,4.0449]
[1737621803653,11.78262419,247.33,247.23,11.78262419]
[1737621804357,11.78262419,247.33,247.23,15.82732419]
[1737621804965,6.2634,247.3,247.21,15.82762419]
[1737621805164,11.78262419,247.29,247.21,15.82762419]
[1737621806648,1.5464,247.28,247.21,4.045]
[1737621806964,1.5464,247.28,247.2,4.0453]
[1737621807258,1.5464,247.28,247.21,11.78262419]
[1737621808759,1.5464,247.28,247.21,15.82752419]
[1737621811065,1.5464,247.28,247.25,11.78262419]
[1737621811762,6.2634,247.3,247.27,11.78262419]
[1737621814845,6.2634,247.3,247.27,15.82662419]
[1737621815036,6.2634,247.3,247.27,11.78262419]
[1737621815939,6.2634,247.3,247.25,15.82692419]
[1737621816442,6.2634,247.3,247.25,11.78262419]
[1737621816649,6.2634,247.3,247.23,15.82722419]
[1737621817269,6.2634,247.3,247.23,17.46849855]
[1737621817566,11.78262419,247.29,247.21,11.78262419]
[1737621818673,6.2634,247.3,247.21,15.82762419]
[1737621819366,6.2634,247.3,247.23,11.78262419]
[1737621820050,6.2634,247.3,247.25,11.78262419]
[1737621820457,6.2634,247.3,247.27,11.78262419]
[1737621821545,1.5464,247.33,247.29,11.78262419]
[1737621821755,1.5464,247.33,247.3,7.53257848]
[1737621823990,1.5464,247.33,247.3,11.57617848]
[1737621824480,6.5718,247.36,247.32,7.53257848]
[1737621824656,6.5718,247.36,247.34,7.53257848]
[1737621825145,1.7201,247.39,247.34,11.57557848]
[1737621825347,1.7201,247.39,247.36,7.53257848]
[1737621826555,0.063,247.39,247.38,7.53257848]
[1737621831994,0.063,247.39,247.38,11.57487848]
[1737621836596,1.6571,247.45,247.38,11.57487848]
[1737621836767,1.6571,247.45,247.42,7.53257848]
[1737621839281,1.6571,247.45,247.38,7.53257848]
[1737621839889,7.53257848,247.42,247.33,7.53257848]
[1737621840271,7.53257848,247.44,247.33,7.53257848]
[1737621840497,7.53257848,247.44,247.35,7.53257848]
[1737621841494,1.6571,247.45,247.37,7.53257848]
[1737621842801,1.6571,247.45,247.39,7.53257848]
[1737621844201,1.6571,247.45,247.41,7.53257848]
[1737621847204,1.7201,247.45,247.41,7.53257848]
[1737621847493,7.53257848,247.44,247.35,7.56257848]
[1737621847703,7.53257848,247.44,247.35,11.60537848]
[1737621850000,1.7201,247.45,247.37,7.53257848]
[1737621850182,1.7201,247.45,247.39,7.53257848]
[1737621850503,1.7201,247.45,247.41,7.53257848]
[1737621851007,1.7201,247.45,247.43,7.53257848]
[1737621853322,0.063,247.45,247.43,11.57407848]
[1737621855111,0.063,247.45,247.43,13.21921214]
[1737621857520,0.063,247.45,247.44,20.0]
[1737621858787,0.063,247.45,247.42,20.0]
[1737621858983,0.063,247.45,247.39,7.53257848]
[1737621859182,0.063,247.45,247.36,10.1063]
[1737621859183,23.839884,247.45,247.35,7.56257848]
[1737621859388,7.53257848,247.43,247.35,7.56257848]
[1737621860086,7.53257848,247.43,247.35,11.60537848]
[1737621862306,23.839884,247.45,247.35,0.03]
[1737621862307,7.53257848,247.41,247.35,0.03]
[1737621864913,30.000084,247.4,247.35,0.03]
[1737621865118,23.776884,247.38,247.35,0.03]
[1737621865428,7.53257848,247.37,247.35,0.03]
[1737621868320,29.259384,247.36,247.35,0.03]
[1737621868506,5.4825,247.36,247.35,0.03]
[1737621870623,29.259384,247.36,247.35,0.03]
[1737621870995,23.776884,247.35,247.23,7.56257848]
[1737621871190,6.2232,247.3,247.23,7.56257848]
[1737621871525,6.2232,247.3,247.24,20.0]
[1737621871824,6.2232,247.3,247.23,0.03]
[1737621872000,7.53257848,247.27,247.23,0.03]
[1737621872687,7.53257848,247.25,247.23,0.03]
[1737621876317,1.6425,247.26,247.23,0.03]
[1737621878444,7.53257848,247.25,247.23,0.03]
[1737621878928,1.0,247.2,247.07,296.47883594]
[1737621879107,7.53257848,247.16,247.08,7.53257848]
[1737621879927,7.53257848,247.16,247.09,4.047]
[1737621880624,7.53257848,247.14,247.07,296.47883594]
[1737621880828,31.902384,247.15,247.07,296.47883594]
[1737621880829,7.53257848,247.11,247.07,296.47883594]
[1737621883727,7.53257848,247.13,247.07,296.47883594]
[1737621884036,15.65807848,247.15,247.07,296.47883594]
[1737621884339,7.53257848,247.13,247.07,296.47883594]
[1737621886112,15.65807848,247.15,247.07,296.47883594]
[1737621886432,8.1255,247.15,247.07,300.52623594]
[1737621887210,8.1255,247.15,247.08,7.53257848]
[1737621887731,4.04,247.16,247.08,7.53257848]
[1737621887914,4.02,247.16,247.08,11.57977848]
[1737621888111,4.02,247.16,247.08,13.20279255]
[1737621888929,4.02,247.16,247.11,7.53257848]
[1737621889124,4.02,247.19,247.11,7.53257848]
[1737621889929,4.02,247.19,247.11,11.57927848]
[1737621892045,8.1255,247.21,247.13,7.53257848]
[1737621892340,4.0,247.24,247.17,7.53257848]
[1737621892637,11.53257848,247.24,247.15,7.53257848]
[1737621893638,11.53257848,247.24,247.15,11.57847848]
[1737621894041,4.0,247.24,247.17,7.53257848]
[1737621895230,4.0,247.24,247.18,4.0456]
[1737621895430,4.0,247.25,247.18,4.0456]
[1737621897238,4.0,247.25,247.19,7.53257848]
[1737621897414,1.5182,247.27,247.21,7.53257848]
[1737621897609,7.53257848,247.3,247.21,7.53257848]
[1737621897610,3.98,247.29,247.21,7.53257848]
[1737621898015,3.98,247.29,247.25,7.53257848]
[1737621900340,9.05077848,247.38,247.27,7.53257848]
[1737621900522,9.05077848,247.38,247.25,4.0444]
[1737621900523,3.98,247.37,247.31,7.53257848]
[1737621900725,6.0237,247.39,247.31,7.53257848]
[1737621901140,3.98,247.42,247.35,7.53257848]
[1737621901320,11.51257848,247.42,247.33,7.53257848]
[1737621901519,7.59557848,247.36,247.29,7.53257848]
[1737621901722,7.53257848,247.34,247.26,7.53257848]
[1737621903747,11.77599831,247.34,247.25,11.77599831]
[1737621904131,11.77599831,247.32,247.23,11.77599831]
[1737621906045,11.77599831,247.32,247.23,15.82069831]
[1737621907152,25.281584,247.31,247.23,11.77599831]
[1737621907450,11.77599831,247.3,247.21,11.77599831]
[1737621907653,11.77599831,247.3,247.19,13.359523]
[1737621908337,11.77599831,247.3,247.19,17.404923]
[1737621909931,11.77599831,247.3,247.21,11.77599831]
[1737621910134,6.633,247.36,247.29,11.77599831]
[1737621910523,6.633,247.36,247.31,11.77599831]
[1737621912141,6.633,247.36,247.29,11.77599831]
[1737621912847,6.633,247.36,247.31,11.77599831]
[1737621913951,0.063,247.36,247.35,11.77599831]
[1737621915953,0.063,247.36,247.35,13.37970496]
[1737621916154,43.723,247.45,247.39,20.0]
[1737621916451,43.723,247.45,247.44,11.77599831]
[1737621916819,43.723,247.45,247.42,11.77599831]
[1737621917023,43.723,247.45,247.4,11.77599831]
[1737621918624,43.723,247.45,247.42,11.77599831]
[1737621919024,0.063,247.45,247.42,11.77599831]
[1737621919260,0.063,247.45,247.44,11.77599831]
[1737621922847,0.063,247.49,247.47,20.0]
[1737621923055,0.063,247.49,247.48,11.77599831]
[1737621924453,0.063,247.54,247.48,11.77599831]
[1737621924454,0.063,247.54,247.51,20.0]
[1737621924662,0.063,247.54,247.53,11.77599831]
[1737621925227,0.063,247.54,247.5,11.77599831]
[1737621925547,0.063,247.54,247.48,11.77599831]
[1737621925940,0.063,247.54,247.46,11.77599831]
[1737621929256,7.703,247.53,247.46,11.77599831]
[1737621930661,11.77599831,247.51,247.44,11.77599831]
[1737621930840,11.77599831,247.49,247.4,11.77599831]
[1737621933563,11.77599831,247.47,247.38,11.77599831]
[1737621933739,3.92,247.46,247.38,11.77599831]
[1737621934440,3.92,247.46,247.4,11.77599831]
[1737621934640,3.92,247.46,247.38,11.77599831]
[1737621934863,7.961,247.46,247.38,11.77599831]
[1737621935245,7.961,247.46,247.35,0.03]
[1737621935246,35.55288231,247.43,247.35,0.03]
[1737621935766,11.77599831,247.39,247.35,0.03]
[1737621935950,23.776884,247.38,247.35,0.03]
[1737621936649,11.77599831,247.37,247.35,0.03]
[1737621938573,31.77599831,247.41,247.35,0.03]
[1737621939439,23.776884,247.4,247.35,0.03]
[1737621940652,11.77599831,247.41,247.35,0.03]
[1737621940867,7.7773,247.44,247.4,11.77599831]
[1737621940868,11.6773,247.44,247.4,11.77599831]
[1737621941467,3.9,247.49,247.42,11.77599831]
[1737621941669,3.9,247.49,247.44,11.77599831]
[1737621943140,3.9,247.49,247.42,11.77599831]
[1737621943373,15.67599831,247.49,247.4,11.77599831]
[1737621943578,15.67599831,247.49,247.44,0.03]
[1737621943754,11.77599831,247.47,247.44,0.03]
[1737621946047,3.88,247.48,247.44,11.80599831]
[1737621946244,7.7773,247.5,247.44,11.80599831]
[1737621946572,0.063,247.53,247.48,11.77599831]
[1737621948277,0.063,247.53,247.5,11.77599831]
[1737621949478,0.063,247.53,247.52,11.77599831]
[1737621949776,0.063,247.53,247.52,15.81599831]
[1737621950652,0.063,247.53,247.52,11.77599831]
[1737621951279,0.063,247.53,247.5,11.77599831]
[1737621951461,0.063,247.53,247.48,11.77599831]
[1737621951658,0.063,247.53,247.46,11.77599831]
[1737621951966,0.063,247.53,247.44,11.80599831]
[1737621951967,11.77599831,247.52,247.44,11.80599831]
[1737621952268,23.776884,247.51,247.44,0.03]
[1737621952878,0.063,247.53,247.46,11.77599831]
[1737621953376,0.063,247.53,247.48,11.77599831]
[1737621953877,0.063,247.53,247.48,18.80602158]
[1737621954774,0.063,247.53,247.46,18.80602158]
[1737621954966,18.86902158,247.53,247.44,0.03]
[1737621955655,18.80602158,247.51,247.44,0.03]
[1737621959084,42.64590558,247.53,247.44,0.03]
[1737621959376,42.64590558,247.53,247.45,18.80602158]
[1737621959377,0.063,247.53,247.45,18.80602158]
[1737621959584,0.063,247.53,247.47,18.80602158]
[1737621960503,18.86902158,247.53,247.44,0.03]
[1737621962589,18.80602158,247.51,247.44,0.03]
[1737621963767,18.86902158,247.53,247.44,0.03]
[1737621965571,18.80602158,247.51,247.44,0.03]
[1737621966173,18.80602158,247.51,247.35,11.77157422]
[1737621966174,23.776884,247.4,247.35,0.03]
[1737621966376,18.80602158,247.37,247.35,0.03]
[1737621966696,23.776884,247.36,247.35,0.03]
[1737621968274,23.776884,247.36,247.21,18.80602158]
[1737621968275,23.776884,247.34,247.21,18.80602158]
[1737621968589,18.80602158,247.3,247.21,18.80602158]
[1737621968765,18.80602158,247.3,247.19,22.88142158]
[1737621968967,18.80602158,247.28,247.19,18.83602158]
[1737621969182,18.80602158,247.26,247.19,0.03]
[1737621969585,18.80602158,247.24,247.19,0.03]
[1737621969891,18.80602158,247.22,247.19,0.03]
[1737621972475,11.6596,247.24,247.19,0.03]
[1737621973688,18.80602158,247.22,247.19,0.03]
[1737621974369,11.6596,247.24,247.19,0.03]
[1737621974370,18.80602158,247.2,247.19,0.03]
[1737621975771,3.94,247.2,247.19,0.03]
[1737621978195,66.52290558,247.2,247.19,0.03]
[1737621979006,85.32892716,247.2,247.19,0.03]
[1737621979172,36.541884,247.19,247.13,0.03]
[1737621979366,36.541884,247.19,247.11,0.03]
[1737621979367,20.0,247.12,247.11,0.03]
[1737621979572,42.58290558,247.12,247.11,0.03]
[1737621980397,46.62950558,247.12,247.11,0.03]
[1737621981202,20.0,247.08,247.07,294.81223594]
[1737621981380,57.61204316,247.08,247.07,294.81223594]
[1737621981805,81.38892716,247.08,247.07,294.81223594]
[1737621982099,82.38892716,247.08,247.07,188.12735635]
[1737621982303,86.43612716,247.08,247.07,181.46075635]
[1737621982600,86.43612716,247.08,247.07,179.79415635]
[1737621983297,86.43612716,247.08,247.07,169.79435635]
[1737621984878,86.43612716,247.08,247.07,63.10947676]
[1737621985077,87.14132716,247.08,247.07,17.08247676]
[1737621985292,20.0,246.97,246.84,22.85702158]
[1737621985502,18.80602158,246.95,246.84,18.80602158]
[1737621985688,18.80602158,246.95,246.86,4.0507]
[1737621985888,18.80602158,246.95,246.84,22.85712158]
[1737621986092,19.54182079,247.08,246.96,20.0]
[1737621986405,18.80602158,247.1,247.0,18.80602158]
[1737621986778,18.80602158,247.08,246.98,18.80602158]
[1737621986988,18.80602158,247.05,246.96,18.80602158]
[1737621987312,18.80602158,247.01,246.94,1.6541]
[1737621987494,18.80602158,246.99,246.94,0.03]
[1737621987875,18.80602158,246.97,246.94,0.03]
[1737621988102,4.04,246.96,246.94,0.03]
[1737621988283,18.80602158,246.95,246.94,0.03]
[1737621989390,9.0892,246.96,246.94,0.03]
[1737621990292,18.80602158,246.95,246.94,0.03]
[1737621990801,125.08290558,246.95,246.94,0.03]
[1737621991606,82.5,246.95,246.94,0.03]
[1737621991805,22.84602158,246.96,246.94,0.03]
[1737621992182,23.84602158,246.96,246.94,0.03]
[1737621992516,26.89522158,246.96,246.94,0.03]
[1737621992883,2.0,246.95,246.94,0.03]
[1737621993106,29.826284,246.95,246.94,0.03]
[1737621993314,6.0494,246.95,246.94,0.03]
[1737621993603,29.826284,246.95,246.94,0.03]
[1737621994192,5.0494,246.95,246.94,0.03]
[1737621994513,4.0494,246.95,246.94,0.03]
[1737621995814,22.84602158,246.96,246.94,0.03]
[1737621996194,4.04,246.96,246.94,0.03]
[1737621996516,26.89522158,246.96,246.94,0.03]
[1737621997706,1.0,246.95,246.94,0.03]
[1737621998415,24.776884,246.95,246.94,0.03]
[1737621998596,26.89522158,246.96,246.94,0.03]
[1737621999612,22.84602158,246.96,246.94,0.03]
[1737621999918,4.06,246.95,246.94,0.03]
[1737622001718,24.06,246.95,246.94,0.03]
[1737622002395,4.06,246.95,246.94,0.03]
[1737622010027,20.0,246.96,246.94,0.03]
[1737622010208,4.02,246.95,246.94,0.03]
[1737622011635,8.0694,246.95,246.94,0.03]
[1737622012634,10.0694,246.95,246.94,0.03]
[1737622013126,21.0,246.91,246.81,1.6306]
[1737622013427,1.0,246.93,246.81,1.6306]
[1737622013428,1.0,246.89,246.81,1.6306]
[1737622013606,20.0,246.86,246.75,19.81257983]
[1737622013804,20.0,246.85,246.75,19.81257983]
[1737622014327,20.0,246.85,246.75,13.44517983]
[1737622015015,20.0,246.84,246.75,13.44517983]
[1737622015601,4.0513,246.83,246.75,13.44517983]
[1737622016497,4.0513,246.83,246.73,11.81457983]
[1737622016725,2.0,246.82,246.69,13.47517983]
[1737622016921,20.0,246.76,246.69,1.6606]
[1737622017119,4.06,246.75,246.69,1.6606]
[1737622017520,20.0,246.72,246.69,0.03]
[1737622018831,4.053,246.73,246.69,0.03]
[1737622018832,5.053,246.73,246.69,0.03]
[1737622019019,20.0,246.72,246.69,0.03]
[1737622019201,20.0,246.7,246.69,0.03]
[1737622019614,5.0534,246.71,246.69,0.03]
[1737622019928,20.0,246.72,246.69,0.03]
[1737622020437,1.0,246.78,246.69,1.6606]
[1737622020609,4.06,246.71,246.69,1.6606]
[1737622021008,4.06,246.71,246.69,0.03]
[1737622022203,4.06,246.71,246.69,11.84457983]
[1737622022630,4.06,246.74,246.69,11.84457983]
[1737622022810,4.06,246.74,246.69,0.03]
[1737622023832,24.06,246.74,246.69,0.03]
[1737622024615,4.06,246.74,246.69,0.03]
[1737622026217,17.5649,246.84,246.7,11.81457983]
[1737622026423,4.1,246.82,246.72,11.81457983]
[1737622026807,4.1,246.82,246.7,6.1397]
[1737622027008,43.76,246.83,246.78,11.81457983]
[1737622027209,4.1,246.82,246.78,11.81457983]
[1737622027806,4.1,246.82,246.74,11.81457983]
[1737622028012,4.1,246.82,246.72,11.81457983]
[1737622028013,4.0516,246.81,246.72,11.81457983]
[1737622028621,4.0516,246.81,246.71,1.5016]
[1737622030419,4.1,246.82,246.73,11.81457983]
[1737622030735,8.1515,246.82,246.71,13.31617983]
[1737622031734,4.1,246.82,246.73,11.81457983]
[1737622032317,8.1515,246.82,246.73,11.81457983]
[1737622033338,8.1515,246.82,246.71,13.31617983]
[1737622034229,8.1515,246.82,246.73,11.81457983]
[1737622034442,43.76,246.83,246.73,11.81457983]
[1737622034637,4.1,246.81,246.73,11.81457983]
[1737622034840,4.1,246.81,246.71,17.36947983]
[1737622035938,20.0,246.8,246.71,1.5016]
[1737622037042,24.0519,246.8,246.71,1.5016]
[1737622039644,20.0,246.79,246.71,1.5016]
[1737622040221,4.1,246.81,246.71,17.36937983]
[1737622040746,8.1517,246.81,246.71,1.5016]
[1737622041541,20.0,246.78,246.71,1.5016]
[1737622041843,20.0,246.78,246.69,0.03]
[1737622042341,20.0,246.74,246.69,0.03]
[1737622042544,20.0,246.7,246.69,0.03]
[1737622042741,24.0535,246.7,246.69,0.03]
[1737622042949,47.830384,246.7,246.69,0.03]
[1737622043817,4.0535,246.7,246.69,0.03]
[1737622046644,4.0535,246.7,246.57,1.5487]
[1737622046645,20.0,246.68,246.57,1.5487]
[1737622047751,4.0539,246.67,246.57,1.5487]
[1737622047922,20.0,246.64,246.57,1.5487]
[1737622049356,6.123,246.73,246.57,1.5487]
[1737622049522,4.06,246.63,246.57,1.5487]
[1737622049721,4.06,246.62,246.57,5.6043]
[1737622050334,4.06,246.62,246.57,1.5487]
[1737622050538,4.06,246.62,246.57,0.03]
[1737622050925,24.06,246.62,246.57,0.03]
[1737622051851,20.0,246.59,246.57,0.03]
[1737622052551,24.0549,246.61,246.57,0.03]
[1737622054353,4.0549,246.61,246.57,0.03]
[1737622055457,4.06,246.62,246.57,0.03]
[1737622056141,8.1148,246.62,246.57,0.03]
[1737622056964,4.06,246.61,246.57,0.03]
[1737622057429,4.0551,246.6,246.57,0.03]
[1737622058450,4.06,246.61,246.57,0.03]
[1737622058627,20.0,246.6,246.57,0.03]
[1737622059027,24.06,246.61,246.57,0.03]
[1737622059354,20.0,246.61,246.57,0.03]
[1737622059527,4.04,246.6,246.57,0.03]
[1737622059851,4.04,246.62,246.57,0.03]
[1737622060856,8.0948,246.62,246.57,0.03]
[1737622063347,20.0,246.58,246.57,0.03]
[1737622064064,43.776884,246.58,246.57,0.0001]
[1737622064834,20.0,246.58,246.57,0.0001]
[1737622065046,24.0554,246.58,246.57,0.0001]
[1737622065659,4.0554,246.58,246.57,0.0001]
[1737622067631,8.52775903,246.58,246.57,0.0001]
[1737622068032,24.0554,246.58,246.57,0.0001]
[1737622068858,4.0554,246.58,246.57,0.0001]
[1737622069859,28.832284,246.58,246.57,0.0001]
[1737622070045,27.832284,246.58,246.57,0.0001]
[1737622073258,4.0554,246.58,246.57,0.0001]
[1737622073458,8.1354,246.58,246.57,0.0001]
[1737622078560,33.912284,246.58,246.57,0.0001]
[1737622078767,37.38464303,246.58,246.57,0.0001]
[1737622079064,36.38464303,246.58,246.57,0.0001]
[1737622079441,12.58775903,246.58,246.57,0.0001]
[1737622079868,8.52775903,246.58,246.57,0.0001]
[1737622080167,8.1154,246.58,246.57,0.0001]
[1737622081271,4.06,246.58,246.57,0.0001]
[1737622081771,8.52695903,246.64,246.57,0.0001]
[1737622082245,4.04,246.63,246.57,0.0001]
[1737622082760,20.0,246.6,246.57,0.0001]
[1737622084365,4.0553,246.59,246.57,0.0001]
[1737622085460,20.0,246.6,246.57,0.0001]
[1737622086875,0.063,246.6,246.57,0.0001]
[1737622087366,20.063,246.6,246.57,0.0001]
[1737622087759,24.1181,246.6,246.57,0.0001]
[1737622088251,20.063,246.6,246.57,0.0001]
[1737622088966,0.063,246.6,246.57,0.0001]
[1737622089556,4.02,246.59,246.57,0.0001]
[1737622090347,20.0,246.58,246.57,0.0001]
[1737622090544,4.02,246.59,246.57,0.0001]
[1737622090749,4.47235903,246.58,246.57,0.0001]
[1737622091155,33.30464303,246.58,246.57,0.0001]
[1737622091773,33.30464303,246.58,246.47,1.5601]
[1737622091774,20.0,246.54,246.47,1.5601]
[1737622091971,20.0,246.55,246.47,1.5601]
[1737622092274,23.776884,246.54,246.47,1.5601]
[1737622093150,20.0,246.51,246.47,1.5601]
[1737622094968,43.776884,246.47,246.46,0.03]
[1737622095179,47.834084,246.47,246.46,0.03]
[1737622095764,48.834084,246.47,246.46,0.0001]
[1737622096451,24.0572,246.47,246.46,0.0001]
[1737622096782,4.0572,246.47,246.46,0.0001]
[1737622097366,5.0572,246.47,246.46,0.0001]
[1737622097875,24.0572,246.47,246.46,0.0001]
[1737622098056,5.0572,246.47,246.46,0.0001]
[1737622098264,28.834084,246.47,246.46,0.0001]
[1737622099076,20.0,246.42,246.34,1.5601]
[1737622099373,20.0,246.38,246.34,1.5601]
[1737622099780,4.06,246.41,246.28,1.5601]
[1737622100073,20.0,246.37,246.28,1.5601]
[1737622100674,20.0,246.39,246.28,1.5601]
[1737622101358,4.0587,246.38,246.28,1.5601]
[1737622101680,20.0,246.37,246.28,1.5601]
[1737622102871,20.0,246.38,246.29,11.86009934]
[1737622103082,4.08,246.37,246.31,11.86009934]
[1737622103271,4.1,246.36,246.31,11.86009934]
[1737622103566,20.0,246.45,246.31,15.91989934]
[1737622103769,4.08,246.35,246.31,15.91989934]
[1737622104077,4.0569,246.49,246.33,11.86009934]
[1737622104281,4.08,246.4,246.36,11.86009934]
[1737622104664,4.08,246.4,246.34,11.86009934]
[1737622104975,4.08,246.4,246.32,13.36449934]
[1737622107275,4.08,246.4,246.32,17.42419934]
[1737622109594,4.08,246.4,246.34,11.86009934]
[1737622109968,4.0577,246.45,246.34,11.86009934]
[1737622110165,4.08,246.44,246.32,17.42419934]
[1737622110366,4.08,246.44,246.32,1.5044]
[1737622110605,20.0,246.42,246.32,1.5044]
[1737622111088,4.0579,246.43,246.32,1.5344]
[1737622111465,20.0,246.41,246.32,1.5344]
[1737622111775,20.0,246.4,246.32,1.5344]
[1737622111977,20.0,246.4,246.32,1.5044]
[1737622113175,4.0586,246.39,246.32,1.5044]
[1737622115389,4.06,246.38,246.32,1.5044]
[1737622116393,4.0589,246.37,246.32,1.5044]
[1737622118565,4.0589,246.37,246.26,13.42959934]
[1737622118566,20.0,246.35,246.26,13.42959934]
[1737622118781,20.0,246.35,246.26,1.5695]
[1737622118984,4.0589,246.37,246.28,11.86009934]
[1737622120607,4.0589,246.37,246.27,4.0605]
[1737622120799,4.0589,246.37,246.26,17.49029934]
[1737622121184,4.0589,246.37,246.26,13.42959934]
[1737622121792,4.0589,246.37,246.26,1.5695]
[1737622122004,4.0594,246.34,246.26,1.5695]
[1737622123303,4.0594,246.34,246.32,0.03]
[1737622124096,4.0594,246.34,246.21,7.59873865]
[1737622124301,4.0594,246.34,246.19,7.59873865]
[1737622124595,20.0,246.31,246.19,11.66063865]
[1737622125396,4.06,246.3,246.19,11.66063865]
[1737622125772,4.06,246.3,246.17,19.89173865]
[1737622125968,29.881284,246.29,246.11,7.59873865]
[1737622126189,20.0,246.22,246.09,7.59873865]
[1737622126396,4.02,246.21,246.09,7.59873865]
[1737622127378,20.0,246.18,246.06,11.66263865]
[1737622127684,20.0,246.18,246.06,15.9558863]
[1737622128107,4.0617,246.2,245.96,11.8919863]
[1737622128108,20.0,246.16,245.96,11.8919863]
[1737622128308,20.0,246.16,245.98,11.8919863]
[1737622128483,20.0,246.16,245.96,15.9575863]
[1737622128685,20.0,246.12,245.96,15.9575863]
[1737622129296,20.0,246.08,245.96,15.9575863]
[1737622129997,47.922,246.18,246.0,11.8919863]
[1737622130180,47.922,246.18,246.02,11.8919863]
[1737622130382,20.0,246.15,246.02,11.8919863]
[1737622130995,20.0,246.15,246.0,11.8919863]
[1737622131204,20.0,246.14,246.0,11.8919863]
[1737622131378,4.0628,246.13,246.0,15.9567863]
[1737622131584,4.0628,246.13,246.0,4.0648]